Cogmind - Beta 11.1 @@@ ROGUE MODE // 2022.06.28 @ 16:14:58 Player: Demise Result: Self-destructed Performance ------------- Evolutions (3) 1500 Regions Visited (9) 1800 Robots Destroyed (175) 875 Value Destroyed (4864) 4864 Prototype IDs (34) 680 Alien Tech Used (0) 0 Bonus (3088) 3088 TOTAL SCORE: 12807 Bonus ------- High Alert Combat Kills 987 Follower Combat Kills 417 Entered Garrisons 400 Used RIF Installer 1000 Aligned with FarCom 300 Friendly Fire -16 Cogmind --------- Core Integrity 424/700 Matter 251/300 Energy 100/100 System Corruption 6% Temperature Cool (9) Movement Core (1500) Ox29 Location -7/Factory Parts ------- > --- POWER (1) -------- (None) > --- PROPULSION (4) --- (None) > --- UTILITY (6) ------ Huge Storage Unit Improved Light Armor Plating Improved Light Armor Plating Hacking Suite > --- WEAPON (2) ------- Shock Rifle > --- INVENTORY (25) --- Armored Wheel Launcher Guidance Computer Hardlight Generator Hardlight Generator Relay Coupler [NC] (28) System Restoration Module Long-range Tractor Beam Trap Reconfigurator Light EM Pulse Cannon Light EM Pulse Cannon Advanced EMP Blaster Advanced EMP Blaster Improved Proton Missile Launcher Missile Launcher Missile Launcher Remote Datajack Remote Datajack Maul Peak State ------------ > --- POWER ------------ Light Nuclear Core > --- PROPULSION ------- Armored Wheel Armored Wheel Armored Wheel Armored Wheel > --- UTILITY ---------- Huge Storage Unit Machine Analyzer Hacking Suite System Shield Relay Coupler [Sentry] Trap Reconfigurator > --- WEAPON ----------- Enhanced Autogun Remote Datajack > --- INVENTORY -------- Armored Huge Wheel Seismic Detector Launcher Guidance Computer Improved Core Shielding Hardened Medium Armor Plating Hardlight Generator Hardlight Generator Hacking Suite System Shield Relay Coupler [NC] Relay Coupler [Grunt] System Restoration Module System Restoration Module Long-range Tractor Beam Light EM Pulse Cannon Light EM Pulse Cannon Flak Gun Advanced EMP Blaster Advanced EMP Blaster Improved Proton Missile Launcher Missile Launcher Missile Launcher Remote Datajack Maul [Rating: 50] Favorites ----------- Power Light Nuclear Core Engine Light Deuterium Engine Power Core Light Nuclear Core Propulsion Armored Wheel Treads Light Treads Wheel Armored Wheel Utility Huge Storage Unit Device Hardlight Generator Storage Huge Storage Unit Processor Machine Analyzer Hackware Hacking Suite Protection Hardened Medium Armor Plating Weapon Heavy Assault Rifle Energy Gun Small Laser Energy Cannon Light EM Pulse Cannon Ballistic Gun Heavy Assault Rifle Ballistic Cannon Improved Light Cannon Launcher Missile Launcher Special Weapon Remote Datajack Impact Weapon Maul Slashing Weapon Katana Build | -11 -10 -10 -10 -9 -8 -8 -8 -8 -7 ------- Run | Scr Mat Min Exi Min Mat Gar Mat Gar Fac Slots Evolved 6 | . . . . . 4 . . . 2 Power . | . . . . . . . . . . Propulsion 2 | . . . . . 2 . . . . Utility 4 | . . . . . 2 . . . 2 Weapon . | . . . . . . . . . . Parts Attached 241 | 7 17 23 2 5 56 19 30 51 31 Power 14 | 1 1 3 . . 4 1 2 1 1 Engine 8 | 1 1 2 . . 2 1 . . 1 Core 6 | . . 1 . . 2 . 2 1 . Reactor . | . . . . . . . . . . Propulsion 54 | 2 3 8 . . 7 6 11 14 3 Treads 3 | . . . . . . 3 . . . Leg . | . . . . . . . . . . Wheel 51 | 2 3 8 . . 7 3 11 14 3 Hover . | . . . . . . . . . . Flight . | . . . . . . . . . . Utility 89 | 2 7 3 2 2 27 3 13 14 16 Device 42 | 1 3 1 1 1 11 2 10 8 4 Storage 4 | 1 1 . 1 . 1 . . . . Processor 4 | . . . . . 3 . . . 1 Hackware 11 | . . . . . . . 1 5 5 Protection 28 | . 3 2 . 1 12 1 2 1 6 Artifact . | . . . . . . . . . . Weapon 84 | 2 6 9 . 3 18 9 4 22 11 Energy Gun 3 | 1 . . . . . . 1 . 1 Energy Cannon 3 | . . . . . . . . 2 1 Ballistic Gun 43 | 1 6 8 . 2 9 4 3 8 2 Ballistic Cannon 2 | . . . . . . . . . 2 Launcher 15 | . . . . 1 3 4 . 5 2 Special Weapon 4 | . . . . . . . . 3 1 Impact Weapon 11 | . . 1 . . 6 1 . 1 2 Slashing Weapon 3 | . . . . . . . . 3 . Piercing Weapon . | . . . . . . . . . . Special Melee Weapon . | . . . . . . . . . . Unidentified Prototypes 2 | . . . . . 1 . 1 . . Parts Lost 34 | . 2 2 . . 4 6 2 . 18 Power 5 | . . 1 . . 1 1 . . 2 Propulsion 11 | . . 1 . . 1 4 1 . 4 Utility 13 | . 1 . . . 2 . 1 . 9 Weapon 5 | . 1 . . . . 1 . . 3 Highest Loss Streak 7 | . 1 2 . . 3 4 1 . 7 To Critical Strikes . | . . . . . . . . . . Average Slot Usage (%) 95 | . 98 96 100 100 91 91 96 99 84 Engine 3 | . 14 7 . . 3 6 . . 2 Core 5 | . . 6 14 14 4 . 8 9 4 Wheel 30 | . 28 25 28 28 34 27 31 36 22 Device 6 | . 3 1 9 13 8 6 8 4 2 Storage 10 | . 14 14 14 14 9 9 9 9 7 Hackware 2 | . . . . . . . . 6 18 Protection 13 | . 9 12 4 . 10 20 18 15 7 Ballistic Gun 16 | . 27 27 28 27 15 16 17 7 4 Special Weapon 1 | . . . . . . . . 4 3 Impact Weapon 1 | . . . . . 2 . . 1 2 Naked Turns . | . . . . . . . . . . Heaviest Build 115 | 13 35 37 51 58 112 115 111 111 108 Greatest Support 60 | 20 20 20 20 20 55 60 60 56 56 Greatest Overweight (x) 34 | . 1 3 2 2 2 34 10 2 30 Average Overweight (x) 1 | . . 1 1 2 1 2 1 1 1 Largest Inventory Capacity 25 | 8 15 15 20 20 25 25 25 25 25 Average Capacity 22 | 5 14 15 16 20 22 25 25 25 25 Most Carried 25 | 6 15 15 19 20 25 25 25 25 25 Average Carried 21 | 3 14 14 15 19 22 24 24 24 21 Final Capacity 25 | 8 15 15 20 20 25 25 25 25 25 Final Carried 25 | 6 15 15 19 20 25 25 25 25 18 Class Distribution -------------------- 59% | Mutant 29% | Scavenger-Mutant 7% | Commander-Mutant Dominant Class ---------------- Mutant | -10/Materials Scavenger-Mutant | -10/Mines Scavenger-Mutant | -10/Exiles Scavenger-Mutant | -9/Mines Mutant | -8/Materials Scavenger-Mutant | -8/Garrison Mutant | -8/Materials Mutant | -8/Garrison Scavenger-Mutant | -7/Factory Resources | -11 -10 -10 -10 -9 -8 -8 -8 -8 -7 ----------- Run | Scr Mat Min Exi Min Mat Gar Mat Gar Fac Matter Collected 5695 | 285 435 539 . 55 1107 614 1346 842 472 Remotely . | . . . . . . . . . . Salvage Created 6650 | 197 565 553 . 23 1185 542 1489 1507 589 Parts 399 | 13 40 45 . 8 87 30 94 56 26 Haulers Intercepted 12 | . 1 . . . 5 . 6 . . Recyclers Shooed 3 | . 2 . . . 1 . . . . Parts Field Recycled . | . . . . . . . . . . Retrieved Matter . | . . . . . . . . . . Parts Self-Destructed . | . . . . . . . . . . Prevented . | . . . . . . . . . . Kills | -11 -10 -10 -10 -9 -8 -8 -8 -8 -7 ------- Run | Scr Mat Min Exi Min Mat Gar Mat Gar Fac Combat Hostiles Destroyed 119 | . 14 13 . 3 23 16 28 11 11 Guns 80 | . 14 12 . 1 13 3 28 6 3 Cannons 2 | . . . . . . . . . 2 AOE 34 | . . . . 2 10 12 . 5 5 Classes Destroyed 16 | 2 6 2 . . 1 1 1 2 1 Worker 7 | . . 1 . . 4 . 2 . . Builder 7 | . 1 3 . . . . 1 . 2 Tunneler 11 | 5 . 3 . 1 2 . . . . Hauler 12 | . 1 . . . 5 . 6 . . Recycler 5 | 1 . 2 . . . . 1 . 1 Operator 4 | . 1 . . . 3 . . . . Watcher 11 | . 2 . . . 5 . 3 1 . Swarmer 48 | . 6 6 . 3 13 7 9 4 . Grunt 40 | . 8 6 . . 4 3 9 5 5 Brawler 1 | . . . . . . . . 1 . Duelist 1 | . . . . . . . . 1 . Sentry 22 | . . . . . 6 5 9 . 2 Hunter 3 | . . . . . . . 1 . 2 Programmer 2 | . . . . . . . . . 2 Behemoth 1 | . . . . . . 1 . . . Assembled 1 | . . 1 . . . . . . . Best Kill Streak 9 | 6 4 5 . 3 6 7 9 4 7 Combat Bots Only 7 | . 3 3 . 3 5 7 5 4 6 Max Kills in Single Turn 4 | 1 1 2 . 1 4 3 2 3 2 Gunslinging 1 | . . 1 . . . . . . . Exploded 4 | . . . . 1 4 3 . 3 1 Melee . | . . . . . . . . . . Uniques/NPCs Destroyed . | . . . . . . . . . . Combat | -11 -10 -10 -10 -9 -8 -8 -8 -8 -7 -------- Run | Scr Mat Min Exi Min Mat Gar Mat Gar Fac Damage Taken 6098 | . 557 363 . 22 880 1186 747 211 2132 Core 761 | . 48 58 . 6 76 182 94 21 276 Absorbed by Shields 592 | . . . . . 48 188 320 36 . Redirected to Shielding 96 | . . . . . . . 34 7 55 Regen/Repaired (Parts) 466 | . 144 . . . 171 . 151 . . Core Remaining (%) 62 | 100 . . . 55 . . . 32 . Volleys Fired 534 | 15 74 58 . 7 87 97 97 50 49 Largest 2 | 2 2 2 . 2 2 2 2 2 2 Hottest 112 | 60 40 43 . 46 46 48 53 112 84 Shots Fired 958 | 30 147 115 . 12 168 165 193 64 64 Gun 864 | 30 147 115 . 10 164 139 193 30 36 Cannon 12 | . . . . . . . . 4 8 Launcher 52 | . . . . 2 4 26 . 8 12 Special 30 | . . . . . . . . 22 8 Kinetic 847 | 15 147 115 . 10 164 139 193 30 34 Thermal 15 | 15 . . . . . . . . . Explosive 39 | . . . . 2 4 24 . 4 5 Electromagnetic 27 | . . . . . . 2 . 8 17 Robot Hit Streak 39 | 8 10 28 . 3 7 39 14 17 10 Robot Miss Streak 7 | 2 4 4 . 2 4 2 7 3 4 Penetration Max . | . . . . . . . . . . Secondary Targets 3 | . . 2 . . . . 1 . . Max Gunslinging Chain 1 | . . 1 . . . . 1 . . Shots Hit Robots 722 | 19 93 83 . 6 116 119 140 92 54 Core Hits 400 | 8 35 30 . 4 58 70 114 46 35 Critical Kills 5 | . 1 . . . 3 . 1 . . Critical Parts Destroyed 9 | . . 2 . . 3 4 . . . Critical Strikes 21 | . 1 2 . . 6 4 1 6 1 Destroy 8 | . 1 2 . . 1 3 1 . . Blast 1 | . . . . . . . . . 1 Smash 6 | . . . . . 5 1 . . . Sever 6 | . . . . . . . . 6 . Melee Attacks 133 | . . 5 . . 33 6 . 74 15 Impact 62 | . . 5 . . 33 6 . 3 15 Slashing 71 | . . . . . . . . 71 . Piercing . | . . . . . . . . . . Sneak Attacks 6 | . . . . . 5 . . 1 . Combat Hostiles . | . . . . . . . . . . Follow-up Attacks . | . . . . . . . . . . Damage Inflicted 15581 | 194 992 1135 . 293 2692 3068 2412 3399 1396 Guns 8246 | 194 992 1089 . 93 1613 1028 2412 293 532 Cannons 195 | . . . . . . . . 74 121 Explosions 3819 | . . . . 200 580 1975 . 519 545 Melee 3282 | . . 46 . . 499 26 . 2513 198 Ramming 39 | . . . . . . 39 . . . Kinetic 8099 | 51 992 1089 . 93 1613 1028 2412 293 528 Thermal 180 | 143 . . . . . . . 37 . Explosive 3361 | . . . . 200 580 1876 . 375 330 Electromagnetic 620 | . . . . . . 99 . 181 340 Impact 844 | . . 46 . . 499 26 . 75 198 Slashing 2438 | . . . . . . . . 2438 . Piercing . | . . . . . . . . . . Highest Corruption 10 | . 1 1 1 1 . 2 2 . 10 Average Corruption 1 | . 1 1 1 1 . 2 1 . 5 Corruption Purged 7 | . . . . . . . 3 . 4 Corruption Blocked . | . . . . . . . . . . Effects 35 | . 7 6 3 5 . 2 5 . 7 Message Errors 10 | . 2 . . 1 . 1 2 . 4 Matter Fused 3 | . 1 2 . . . . . . . Heat Flow Errors 4 | . . 1 2 . . 1 . . . Energy Discharges 5 | . 1 . 1 1 . . 1 . 1 Parts Rejected 1 | . . . . . . . . . 1 Data Loss (minor) 8 | . 2 2 . 2 . . 1 . 1 Data Loss (major) 2 | . 1 . . 1 . . . . . Alerts 1 | . . . . . . . 1 . . Weapon Failures 1 | . . 1 . . . . . . . Overload Shots . | . . . . . . . . . . Overflow Damage 422 | . . 6 . . 247 49 . 101 19 Projectiles . | . . . . . . . . . . Explosions 76 | . . . . . 44 23 . 3 6 Melee 346 | . . 6 . . 203 26 . 98 13 Knockbacks 2 | . . . . . 1 . . 1 . Impact 2 | . . . . . 1 . . 1 . Kinetic . | . . . . . . . . . . Secondary . | . . . . . . . . . . Self-Inflicted Damage 40 | . . . . . 21 19 . . . Shots 1 | . . . . . 1 . . . . Rammed 3 | . . . . . . 3 . . . Targets Rammed 3 | . . . . . . 3 . . . Kicked . | . . . . . . . . . . Crushed . | . . . . . . . . . . Highest Temperature 227 | 20 44 227 175 . 69 46 70 57 119 Average Temperature 21 | 9 10 25 80 . 20 16 17 19 48 Received Heat Transfer 1983 | . 183 114 . . 438 256 290 90 612 Siege Activations . | . . . . . . . . . . Robots Corrupted . | . . . . . . . . . . Combat Hostiles . | . . . . . . . . . . Parts Fried 8 | . . . . . 2 1 . 2 3 Impact Corruptions 10 | . . 1 . . 4 2 . 2 1 Robots Melted . | . . . . . . . . . . Combat Hostiles . | . . . . . . . . . . Parts Melted . | . . . . . . . . . . Heat Transferred 375 | 325 . . . . . . . 50 . Parts Sabotaged . | . . . . . . . . . . Parts Stolen . | . . . . . . . . . . Parts Stripped . | . . . . . . . . . . Power Chain Reactions 1 | . . . . . . . . 1 . Missiles Intercepted . | . . . . . . . . . . Alert | -11 -10 -10 -10 -9 -8 -8 -8 -8 -7 ------- Run | Scr Mat Min Exi Min Mat Gar Mat Gar Fac Peak Influence 1379 | 30 311 231 . 133 490 1000 1065 1379 851 Initial 723 | . 19 101 . . 51 318 487 659 723 Average 546 | 13 183 117 . 6 227 638 699 1092 738 Maximum Alert Level 4 | . 1 1 . . 2 3 3 4 3 Low Security (%) 25 | 100 55 84 . 100 38 . . . . Level 1 17 | . 44 15 . . 51 8 4 . . Level 2 21 | . . . . . 9 58 51 8 25 Level 3 26 | . . . . . . 33 43 43 74 Level 4 9 | . . . . . . . . 48 . Level 5 . | . . . . . . . . . . High Security . | . . . . . . . . . . Max Security . | . . . . . . . . . . Squads Dispatched 24 | . 4 1 . . 8 . 5 . 6 Investigation 13 | . 3 1 . . 4 . 2 . 3 Extermination 1 | . . . . . . . . . 1 Reinforcement 2 | . 1 . . . 1 . . . . Assault . | . . . . . . . . . . Garrison 8 | . . . . . 3 . 3 . 2 Intercept . | . . . . . . . . . . Searches Triggered . | . . . . . . . . . . Construction Impeded . | . . . . . . . . . . Haulers Reinforced . | . . . . . . . . . . Active Scanning Responses . | . . . . . . . . . . Cargo Convoy Interrupts . | . . . . . . . . . . Stealth | -11 -10 -10 -10 -9 -8 -8 -8 -8 -7 --------- Run | Scr Mat Min Exi Min Mat Gar Mat Gar Fac Distress Signals 12 | . 3 . . . . 2 5 . 2 Communications Jammed . | . . . . . . . . . . Distress Signals . | . . . . . . . . . . Times Spotted 191 | . 27 15 . 3 40 21 40 19 26 Peak Tracking Total 11 | . 5 3 . 3 4 11 5 4 7 Tactical Retreats 14 | . 1 1 . . 3 5 2 2 . Traps | -11 -10 -10 -10 -9 -8 -8 -8 -8 -7 ------- Run | Scr Mat Min Exi Min Mat Gar Mat Gar Fac Traps Triggered 9 | . 3 . . . . 2 1 2 1 Indirectly 1 | . . . . . . . . 1 . Trap Hack Attempts . | . . . . . . . . . . Triggered . | . . . . . . . . . . Disarmed . | . . . . . . . . . . Reprogrammed . | . . . . . . . . . . Reused 5 | . . . . . . 2 . 3 . Traps Reconfigurated 53 | . . . . . 31 6 2 10 4 Traps Extracted . | . . . . . . . . . . Installed . | . . . . . . . . . . Triggered 6 | . . . . . . 2 . 4 . Exploded 3 | . . . . . 3 . . . . Machines | -11 -10 -10 -10 -9 -8 -8 -8 -8 -7 ---------- Run | Scr Mat Min Exi Min Mat Gar Mat Gar Fac Machines Disabled 14 | . . 1 . . 5 . 1 3 4 Max in Single Turn 2 | . . 1 . . 2 . 1 1 1 Garrison Relay 3 | . . . . . . . . 3 . Machines Sabotaged . | . . . . . . . . . . Garrisons Compromised . | . . . . . . . . . . Overloaded Fab Kills . | . . . . . . . . . . Hacking | -11 -10 -10 -10 -9 -8 -8 -8 -8 -7 --------- Run | Scr Mat Min Exi Min Mat Gar Mat Gar Fac Machines Accessed 54 | . 10 1 2 . 16 . 14 . 11 Terminals 33 | . 7 . . . 10 . 9 . 7 Fabricators 3 | . . . . . . . . . 3 Repair Stations 5 | . 1 . . . 1 . 2 . 1 Recycling Units 6 | . 2 . . . 2 . 2 . . Scanalyzers 2 | . . . . . 2 . . . . Garrison Access 2 | . . . . . 1 . 1 . . Total Hacks 169 | . 34 1 2 . 53 . 41 . 38 Successful 101 | . 24 1 2 . 34 . 24 . 16 Failed 66 | . 9 . . . 18 . 17 . 22 Catastrophic 7 | . 1 . . . 1 . 1 . 4 Database Lockouts 2 | . 1 . . . 1 . . . . Manual 114 | . 23 . 1 . 30 . 28 . 32 Terminals 114 | . 24 . . . 31 . 30 . 29 Fabricators 7 | . . . . . . . . . 7 Repair Stations 26 | . 6 . . . 11 . 7 . 2 Recycling Units 12 | . 4 . . . 5 . 3 . . Scanalyzers 5 | . . . . . 5 . . . . Garrison Access 2 | . . . . . 1 . 1 . . Terminal Hacks 27 | . 8 1 2 . 4 . 6 . 6 Record 1 | . . . 1 . . . . . . Part Schematic 1 | . . . . . . . . . 1 Robot Analysis 11 | . 6 . . . 2 . 3 . . Prototype ID Bank 4 | . 1 . . . 1 . 2 . . Open Door 1 | . . 1 . . . . . . . Branch Access Points 1 | . . . . . . . . . 1 Terminal Index 3 | . 1 . . . . . 1 . 1 Fabricator Index 1 | . . . . . . . . . 1 Locate Traps 1 | . . . . . . . . . 1 Hauler Manifests 1 | . . . . . 1 . . . . Zone Layout 1 | . . . . . . . . . 1 EX-Prototype ID Bank 1 | . . . 1 . . . . . . Fabricator Hacks 2 | . . . . . . . . . 2 Load Schematic 1 | . . . . . . . . . 1 Build 1 | . . . . . . . . . 1 Repair Station Hacks 23 | . 6 . . . 10 . 6 . 1 Scan Component 12 | . 3 . . . 5 . 3 . 1 Repair 11 | . 3 . . . 5 . 3 . . Recycling Unit Hacks 5 | . 2 . . . 2 . 1 . . Retrieve Components 5 | . 2 . . . 2 . 1 . . Scanalyzer 5 | . . . . . 5 . . . . Insert Component 3 | . . . . . 3 . . . . Analyze 2 | . . . . . 2 . . . . Garrison Access Hacks 2 | . . . . . 1 . 1 . . Unlock Access 2 | . . . . . 1 . 1 . . Unauthorized Hacks 37 | . 8 . . . 12 . 10 . 7 Terminals 31 | . 6 . . . 11 . 9 . 5 Assimilate 2 | . . . . . . . 1 . 1 Botnet 26 | . 5 . . . 10 . 7 . 4 Operators 3 | . 1 . . . 1 . 1 . . Fabricators 2 | . . . . . . . . . 2 Fabnet 2 | . . . . . . . . . 2 Repair Stations . | . . . . . . . . . . Recycling Units 4 | . 2 . . . 1 . 1 . . Tunnel 4 | . 2 . . . 1 . 1 . . Scanalyzers . | . . . . . . . . . . Garrison Access . | . . . . . . . . . . Data Cores Recovered 2 | . . . . . 2 . . . . Used 1 | . . . . . 1 . . . . Hacking Detections 41 | . 7 . . . 13 . 12 . 9 Full Trace Events 11 | . 2 . . . 3 . 3 . 3 Feedback Events . | . . . . . . . . . . Feedback Blocked . | . . . . . . . . . . Robot Schematics Acquired . | . . . . . . . . . . Robots Built . | . . . . . . . . . . Authchips . | . . . . . . . . . . Time . | . . . . . . . . . . Total Robot Build Rating . | . . . . . . . . . . Part Schematics Acquired 3 | . . . . . 2 . . . 1 Parts Built 1 | . . . . . . . . . 1 Authchips . | . . . . . . . . . . Time 95 | . . . . . . . . . 95 Total Part Build Rating 5 | . . . . . . . . . 5 Parts Repaired 11 | . 3 . . . 5 . 3 . . Time 374 | . 84 . . . 160 . 130 . . Parts Recycled . | . . . . . . . . . . Recycled Matter . | . . . . . . . . . . Retrieved Matter . | . . . . . . . . . . Retrieved Components 46 | . 19 . . . 17 . 10 . . Parts Scanalyzed 2 | . . . . . 2 . . . . Part Schematics Acquired 2 | . . . . . 2 . . . . Parts Damaged . | . . . . . . . . . . Bothacking | -11 -10 -10 -10 -9 -8 -8 -8 -8 -7 ------------ Run | Scr Mat Min Exi Min Mat Gar Mat Gar Fac Used RIF Installer 2 | . . . . . . 1 . 1 . Hotswap 1 | . . . . . . . . 1 . Robots Hacked 9 | . . . . . . . . 5 4 Non-combat . | . . . . . . . . . . Combat 9 | . . . . . . . . 5 4 Robot Hacks Applied 9 | . . . . . . . . 5 4 overwrite_iff 1 | . . . . . . . . 1 . streamctrl_high 2 | . . . . . . . . 1 1 formatsys_high 6 | . . . . . . . . 3 3 Relay Couplers Released 14 | . . . . . . . . 14 . Machine Destruction 14 | . . . . . . . . 14 . Attached 6 | . . . . . . . . 5 1 Fabnet Peak Effective % . | . . . . . . . . . . Robots Rewired 7 | . . . . . . . . 7 . Allies Hacked . | . . . . . . . . . . Hacks Repelled . | . . . . . . . . . . Allies | -11 -10 -10 -10 -9 -8 -8 -8 -8 -7 -------- Run | Scr Mat Min Exi Min Mat Gar Mat Gar Fac Total Allies 21 | . . 3 . . . . 1 12 5 Largest Group 6 | . . 3 . . . . 1 6 6 Highest-Rated Group 116 | . . 40 . . . . 10 100 116 Highest-Rated Ally 32 | . . 16 . . . . 10 24 32 Total Orders 5 | . . . . . . . . 2 3 STAY 3 | . . . . . . . . 1 2 FOLLOW 2 | . . . . . . . . 1 1 Ally Attacks 68 | . . 14 . . . . . 23 31 Total Damage 1433 | . . 161 . . . . . 627 645 Kills 15 | . . 2 . . . . . 8 5 Allies Corrupted . | . . . . . . . . . . Allies Melted . | . . . . . . . . . . Intel | -11 -10 -10 -10 -9 -8 -8 -8 -8 -7 ------- Run | Scr Mat Min Exi Min Mat Gar Mat Gar Fac Robot Analysis Total 11 | . 6 . . . 2 . 3 . . Derelict Logs Recovered 3 | . . 2 . 1 . . . . . Drone Launches . | . . . . . . . . . . Drone Recoveries . | . . . . . . . . . . Exploration | -11 -10 -10 -10 -9 -8 -8 -8 -8 -7 ------------- Run | Scr Mat Min Exi Min Mat Gar Mat Gar Fac Turns Passed 12278 | 96 1087 1024 368 458 2482 1167 2232 2360 1004 Spaces Moved 7663 | 45 773 684 368 381 1486 558 1270 1500 598 Core 6 | 1 . . . . . 1 . . 4 Treads 87 | . . . . . . 45 42 . . Legs . | . . . . . . . . . . Wheels 7570 | 44 773 684 368 381 1486 512 1228 1500 594 Hover . | . . . . . . . . . . Flight . | . . . . . . . . . . Fastest Speed 50 | 50 80 95 95 110 98 117 102 110 105 Average Speed 112 | 79 94 99 98 110 106 138 124 117 118 Slowest Speed 1750 | 80 95 125 110 110 120 1750 240 122 1550 Overloaded Moves . | . . . . . . . . . . Propulsion Burnouts . | . . . . . . . . . . Robots Hopped . | . . . . . . . . . . Cave-ins Triggered 1 | . . . . . . . . . 1 Exploration Rate (%) 69 | 3 99 98 61 94 93 56 94 85 15 Regions Visited 9 Branch Regions 3 Pre-discovered Areas 5 | . 2 . 1 . 1 . 1 . . Known Exits Taken 2 | . . . . . 1 . 1 . . Unknown Exits Taken 5 | 1 1 1 1 1 . . . . . Scrap Searched 4 | . . 1 . 3 . . . . . Spaces Dug 58 | . . 1 . . 25 6 . 16 10 Terrain Destroyed 226 | . . 1 . 21 41 70 . 50 43 Melee 41 | . . 1 . . 25 . . 5 10 Projectile 2 | . . . . . . . . 2 . AOE 183 | . . . . 21 16 70 . 43 33 Terrain Rammed . | . . . . . . . . . . Walls Destroyed . | . . . . . . . . . . Machines Disabled . | . . . . . . . . . . Actions | -11 -10 -10 -10 -9 -8 -8 -8 -8 -7 --------- Run | Scr Mat Min Exi Min Mat Gar Mat Gar Fac Total 10203 | 77 997 908 376 405 2155 773 1773 1939 800 Wait 1414 | . 104 120 . 13 432 65 352 229 99 Move 7654 | 44 772 683 367 380 1485 557 1269 1499 598 Hop . | . . . . . . . . . . Pick Up 80 | 11 17 2 5 . 26 3 7 7 2 Fast Attach 49 | 2 4 4 . . 16 5 11 1 6 Attach 38 | 5 5 1 1 . 7 2 1 4 12 Detach 17 | . 2 . . . 6 1 1 2 5 Swap 154 | . 8 18 1 5 33 12 18 46 13 Drop 103 | . 11 17 2 . 30 6 17 19 1 Fire 534 | 15 74 58 . 7 87 97 97 50 49 Melee 133 | . . 5 . . 33 6 . 74 15 Ram 3 | . . . . . . 3 . . . Kick . | . . . . . . . . . . Crush . | . . . . . . . . . . Escape Stasis 24 | . . . . . . 16 . 8 . Rewire . | . . . . . . . . . . Trap . | . . . . . . . . . . Miscellaneous . | . . . . . . . . . . Route ------- -11/Scrapyard -10/Materials (discovered 4 exits: [*Mat x3] / *Min) -10/Mines (discovered 3 exits: [*Mat x2] / *Exi) -10/Exiles -9/Mines -8/Materials (discovered 3 exits: *Fac x2 / Gar) -8/Garrison (discovered 3 exits: *Mat x3) -8/Materials (discovered 3 exits: *Fac x2 / Gar) -8/Garrison (discovered 3 exits: *Fac x3) -7/Factory (discovered 4 exits: Sto x2 / Low x2) History --------- Turn | Location | Event 7 | -11/Scrapyard | Discovered new exit (range 15) 97 | -11/Scrapyard | Entered Materials 191 | -10/Materials | Discovered new exit (range 11) 207 | -10/Materials | Discovered new exit (range 16) 301 | -10/Materials | Build established: Mutant 489 | -10/Materials | Repaired Assault Rifle 520 | -10/Materials | Discovered new exit (range 4) 590 | -10/Materials | Discovered new exit (range 4) 601 | -10/Materials | Central database locked down 1116 | -10/Materials | Repaired Assault Rifle 1149 | -10/Materials | Repaired Med. Armor Plating 1184 | -10/Materials | Entered Mines 1197 | -10/Mines | Learned Materials trap positions 1220 | -10/Mines | Met a Derelict bent on vengeance 1484 | -10/Mines | Learned Materials terminal intel 1563 | -10/Mines | Met a Derelict shopkeep closing up shop 1698 | -10/Mines | Discovered new exit (range 4) 1711 | -10/Mines | Build established: Scavenger-Mutant 1714 | -10/Mines | Assisted by bots powering up and referring to "LRC-V3" 1728 | -10/Mines | Discovered new exit (range 12) 1921 | -10/Mines | Excavation squad dispatched 1921 | -10/Mines | A large section of the Mines collapsed 2096 | -10/Mines | Deemed a non-threat by the Exiles lab entrance 2096 | -10/Mines | Discovered new exit (range 5) 2208 | -10/Mines | Entered Exiles 2231 | -10/Exiles | Met 8R-AWN 2247 | -10/Exiles | Met EX-HEX 2276 | -10/Exiles | Met EX-BIN 2289 | -10/Exiles | Aligned with FarCom system 2290 | -10/Exiles | Given EX-Vault access code 2313 | -10/Exiles | Opened EX-Vault 2325 | -10/Exiles | Found Trap Reconfigurator 2344 | -10/Exiles | Warned to stay clear of 0b10 Research branches 2373 | -10/Exiles | Met EX-DEC 2377 | -10/Exiles | Learned location of Zion (-7) 2561 | -10/Exiles | Discovered new exit (range 15) 2576 | -10/Exiles | Left Exiles lab with Trap Reconfigurator 2576 | -10/Exiles | Entered Mines 2986 | -9/Mines | Learned Materials interactive machine intel 3014 | -9/Mines | Discovered new exit (range 8) 3034 | -9/Mines | Entered Materials 3034 | -8/Materials | Evolved 4 slots: Propulsion x2, Utility x2 3035 | -8/Materials | Loaded intel: 32 trap records 3036 | -8/Materials | Loaded intel: 19 interactive machine locations 3037 | -8/Materials | Loaded intel: 12 terminal locations 3383 | -8/Materials | Build established: Mutant 3506 | -8/Materials | Repaired Hvy. Assault Rifle 3540 | -8/Materials | Repaired Hvy. Assault Rifle 3573 | -8/Materials | Repaired Med. Armor Plating 3607 | -8/Materials | Repaired Med. Armor Plating 3640 | -8/Materials | Repaired Arm. Wheel 3739 | -8/Materials | Discovered new exit (range 15) 3767 | -8/Materials | Identified exit to Factory 4042 | -8/Materials | Discovered exit to Factory (range 11) 4390 | -8/Materials | Lost 3 parts (1p1n1u) 4762 | -8/Materials | Garrison activated, responded to threat 4828 | -8/Materials | Central database locked down 5506 | -8/Materials | Identified exit to Garrison 5516 | -8/Materials | Entered Garrison 5584 | -8/Garrison | Triggered checkpoint 5641 | -8/Garrison | Triggered checkpoint 5900 | -8/Garrison | Discovered new exit (range 8) 5960 | -8/Garrison | Build established: Scavenger-Mutant 5981 | -8/Garrison | Discovered new exit (range 10) 6051 | -8/Garrison | Triggered checkpoint 6096 | -8/Garrison | Discovered new exit (range 14) 6118 | -8/Garrison | Installed Relay Interface Framework 6255 | -8/Garrison | Spotted B-75 Beast 6333 | -8/Garrison | Destroyed B-75 Beast 6346 | -8/Garrison | Lost 4 parts (1p2n1w) 6354 | -8/Garrison | Destroyed 7 combat bots 6683 | -8/Garrison | Entered Materials 7227 | -8/Materials | Discovered exit to Factory (range 15) 7381 | -8/Materials | Core integrity fell below 50% 7408 | -8/Materials | Build established: Mutant 7439 | -8/Materials | Repaired Hardlight Generator 7760 | -8/Materials | Repaired Enh. Autogun 7793 | -8/Materials | Repaired Arm. Wheel 8112 | -8/Materials | Garrison activated, responded to threat 8494 | -8/Materials | Discovered exit to Factory (range 3) 8905 | -8/Materials | Identified exit to Garrison 8915 | -8/Materials | Entered Garrison 8947 | -8/Garrison | Triggered checkpoint 8994 | -8/Garrison | Discovered exit to Factory (range 13) 9013 | -8/Garrison | Expanded RIF knowledge: Hotswap 9050 | -8/Garrison | Triggered checkpoint 9160 | -8/Garrison | Garrison Relay disabled 9211 | -8/Garrison | Triggered checkpoint 9286 | -8/Garrison | Discovered exit to Factory (range 12) 9432 | -8/Garrison | Triggered checkpoint 9511 | -8/Garrison | Triggered checkpoint 9600 | -8/Garrison | Garrison Relay disabled 10184 | -8/Garrison | Triggered checkpoint 10275 | -8/Garrison | Garrison Relay disabled 10458 | -8/Garrison | Discovered exit to Factory (range 11) 10643 | -8/Garrison | Build established: Commander-Mutant 11275 | -8/Garrison | Entered Factory 11275 | -7/Factory | Accompanied by 6 allies 11275 | -7/Factory | Evolved 2 slots: Utility x2 11394 | -7/Factory | Identified exit to Storage 11394 | -7/Factory | Identified exit to Lower Caves 11598 | -7/Factory | Build established: Scavenger-Mutant 11896 | -7/Factory | Lost 7 parts (1p1n4u1w) 11901 | -7/Factory | Build established: Hacker-Mutant 12021 | -7/Factory | Crushed by falling debris 12021 | -7/Factory | System corruption reached 10% 12130 | -7/Factory | Garrison activated, responded to threat 12205 | -7/Factory | Fabricated Imp. System Shield (x1) 12240 | -7/Factory | Lost 5 parts (1p2n2w) 12279 | -7/Factory | Self-destructed Last Messages --------------- 12176_ K-01 Serf collects debris. 12182_ Arm. Huge Wheel destroyed. 12183_ K-01 Serf collects debris. 12186_ System corrupted: Energy discharge (-87). 12186_ P-60 Hacker destroyed. 12188_ K-01 Serf collects debris. 12188_ Acquired 37 matter. 12196_ Acquired Shock Rifle. 12202_ Flak Gun destroyed. 12205_ Fabricator completes Imp. System Shield. 12209_ Arm. Huge Wheel destroyed. 12209_ Imp. Deuterium Engine destroyed. 12212_ K-01 Serf collects debris. 12214_ System corrupted: Imp. Light Armor Plating rejected. 12214_ Imp. Heat Sink fried. 12214_ Y-54 Guardian destroyed. 12216_ Acquired Imp. Light Armor Plating. 12219_ K-01 Serf collects debris. 12262_ Acquired Imp. Light Armor Plating. 12279_ Imp. Core Shielding destroyed. Map ----- +----------------------------------------------------+ | ?? ????????????????????????????????????????????? | | ?? ????????????????????????????????????????????? | | ??! ???????????????????????????????????????????? | | ? ^????????????????????????????????????????????? | | ? """"""???????????????????????????????????????? | | ? """"""??????????????????? ?????????????????? | | ? ^"""""" ?#???????????????? #???????????????? | | ? """""" #??????????????? #???????????????? | | ? #??????????????? #???????????????? | | ? #??????????????? #???????????????? | | # ##????########## #?"Y ???????????? | | ???? ! #? "???????????? | | ???? =# ???????????? | | """""" """"""?"""""" !*#= ???????????? | | """""" """"""?"""""" %%/= ?????????????? | | """""" """""" """""" =[#???????????????? | | """""" """""" """""" !%#???????????????? | | """""" """""" """""" #???????????????? | | """""" """""" """""" #???????????????? | | """""" """""" """""" #???????????????? | | """""" """""" """""" % #???????????????? | | """""" """""" """""" w #???????????????? | | #???????????????? | | """""" """""" ####+#####??????????????? | | """""" """""" # Y u #??????????????? | | """""" """""" @% #??????????????? | | """""" """""" =#[ #??????????????? | | """""" """""" # #??????????????? | | """""" """""" ""## #??????????????? | | """""" """""" F"## + ???>????????? | | """""" """""" ! "## ####???????????? | | [ """""" """""" g ""## #??????????????? | | gg ## #??????????????? | | [ ####+######??????????????? | | ########??? #???????????????????? | | #?????????? #???????????????"""?? | | ######?????????? #???????????????"R??? | | ####### %############???? ???????????????"""?? | | ?????## ## #?????#????????????????""?? | | ?????# # #???????????? ????????? | | ###### # #?######### #??????"" | | # ### #???????? | | % + # " #??????"" | | # ! ### T """"""???????????? | | ###### % # #?# """"""???????????? | | ?????# # ! #?# """"""???????????? | | ?????### ############### """"""???????????? | | ???????# #???????????### ?????????????? | | ???????# #?????????????# ????????????? | | ???????# #?????????????# ???????????? | +----------------------------------------------------+ Best States ------------- Heat Dissipation 34 Energy Generation 16 Energy Capacity 290 Matter Stores 300 Matter Capacity 300 Sight Range 16 Terrain Scan Density 10 Additional Mass Support 9 Armor Coverage 450 Core Shielding 30 Evasion (%) 44 Targeting Accuracy 8 Recoil Reduction 3 Salvage Targeting 1 Offensive Hacking 20 Defensive Hacking 20 Relay Coupler Types 2 Relay Coupler Value 46 Item Schematics ----------------- Hacking Suite | -8/Materials | Scanalyzed System Shield | -8/Materials | Scanalyzed Imp. System Shield | -7/Factory | Hacked Robot Schematics ------------------ None Fabricated ------------ Imp. System Shield | x1 | -7/Factory Alien Tech Used ----------------- None Achievements -------------- None Challenges ------------ None Game ------ Seed SubatomicNeutronWings Manual? 0 Play Time 01:53:46 Cumulative 656.7 hours Start 2022.06.27 @ 12:04:04 End 2022.06.28 @ 16:14:58 Sessions 8 Manual Loads 0 Difficulty Rogue Special Mode None Game No. 538 Rogue 538 Adventurer 0 Explorer 0 Win Type - Total 8 Types 7/0/0/1/0/0/0/0/0 Lore% 75 Gallery% 86 Achievement% 69 Wizard Run 0 Options --------- ASCII 0 Keyboard 1 Movement Numpad Keybinds 0 Fullscreen 1 Font 12/Terminus Map View 83x54 Tactical HUD 1 Map Filters NONE Filters NONE Steam 1 RUN: dee4215f-0f5b-4b50-a015-cb771e93b3d8